bitfinex-derivatives/quotes_ETHF0:USTF0_20260214
["timestamp","ask_amount","ask_price","bid_price","bid_amount"]
[1771077817080,0.61589098,2074.1,2072.7,0.60299117]
[1771077817276,0.61589098,2073.9,2072.7,0.60299117]
[1771077818181,0.61589098,2073.9,2072.7,0.60828891]
[1771077821281,0.58578011,2073.7,2072.7,0.60828891]
[1771077822882,0.58578011,2073.7,2072.9,0.63038361]
[1771077830802,0.58578011,2073.7,2072.7,0.63568135]
[1771077831104,7.19952995,2073.6,2072.7,0.87698135]
[1771077831299,0.58061411,2073.6,2072.8,0.63038361]
[1771077833007,0.01666666,2073.3,2072.8,0.63038361]
[1771077839409,0.57184954,2073.6,2072.8,0.63038361]
[1771077841510,0.58457465,2073.8,2073.0,0.57226826]
[1771077844909,0.5752989,2073.6,2073.0,0.57226826]
[1771077848010,0.56597835,2073.4,2072.8,0.57226826]
[1771077848715,0.56505397,2073.5,2072.8,0.57226826]
[1771077849617,4.04952586,2073.8,2072.8,0.57226826]
[1771077849618,0.56415691,2073.7,2072.8,0.57226826]
[1771077849915,0.56415691,2073.5,2072.8,0.57226826]
[1771077854318,0.57445064,2073.6,2072.8,0.57226826]
[1771077854518,0.57364812,2073.4,2072.8,0.57226826]
[1771077856617,0.57364812,2073.4,2072.7,0.577566]
[1771077859022,1.26732554,2073.2,2072.7,0.577566]
[1771077859223,0.59405198,2073.1,2072.7,0.577566]
[1771077860522,40.8,2073.2,2072.7,0.577566]
[1771077861624,0.58916203,2073.5,2072.7,0.577566]
[1771077861825,6.66345915,2073.4,2072.7,0.577566]
[1771077862125,0.58836061,2073.4,2072.7,0.577566]
[1771077865627,0.59664049,2073.3,2072.7,0.577566]
[1771077867727,41.39413569,2073.5,2072.7,0.577566]
[1771077867922,7.25678987,2073.4,2072.7,0.577566]
[1771077868123,0.59413569,2073.4,2072.7,0.577566]
[1771077869725,40.8,2073.5,2072.9,0.57226826]
[1771077869921,6.66220183,2073.4,2072.9,0.57226826]
[1771077870227,40.8,2073.5,2072.9,0.57226826]
[1771077870430,6.66227348,2073.4,2072.9,0.57226826]
[1771077870729,41.39294664,2073.5,2072.9,0.57226826]
[1771077873125,0.58917505,2073.7,2072.9,0.57226826]
[1771077873330,6.66344456,2073.6,2072.9,0.57226826]
[1771077873527,6.66344456,2073.5,2072.9,0.57226826]
[1771077873726,41.38917505,2073.6,2072.9,0.57226826]
[1771077873927,6.66327552,2073.5,2072.9,0.57226826]
[1771077874128,41.38917505,2073.6,2072.9,0.57226826]
[1771077874330,6.66413484,2073.5,2072.9,0.57226826]
[1771077874530,41.38917505,2073.6,2072.9,0.57226826]
[1771077874732,6.66413484,2073.5,2072.9,0.57226826]
[1771077874932,41.38917505,2073.6,2072.9,0.57226826]
[1771077875133,0.58917505,2073.4,2072.9,0.57226826]
[1771077882827,0.5794396,2073.6,2072.9,0.57226826]
[1771077883437,0.5794396,2073.4,2072.9,0.57226826]
[1771077887035,0.5794396,2073.4,2072.8,0.2413]
[1771077887234,0.5794396,2073.3,2072.8,0.2413]
[1771077887439,0.5794396,2073.3,2072.7,0.00529774]
[1771077889339,0.5794396,2073.3,2072.7,0.60366667]
[1771077891945,41.3794396,2073.5,2072.7,0.84496667]
[1771077892137,41.3794396,2073.5,2072.9,0.59836893]
[1771077892640,0.5794396,2073.4,2072.9,0.59836893]
[1771077897648,4.04952586,2074.1,2073.6,0.59836893]
[1771077897942,0.5794396,2074.2,2073.7,0.59836893]
[1771077900641,0.00561916,2074.3,2073.7,0.59836893]
[1771077902547,14.186,2074.6,2073.9,0.57676218]
[1771077902548,0.56949396,2074.6,2073.9,0.57676218]
[1771077903147,0.56949396,2074.6,2074.1,0.57676218]
[1771077903543,0.00621281,2074.6,2074.1,0.57676218]
[1771077903749,0.57411063,2075.0,2074.1,0.57676218]
[1771077904247,0.57411063,2075.0,2072.6,21.12181074]
[1771077904451,1.26732554,2074.0,2073.4,0.57676218]
[1771077904648,1.27233519,2074.0,2073.4,0.57676218]
[1771077905354,0.00500965,2074.0,2073.4,0.57676218]
[1771077908542,1.26732554,2073.8,2073.4,0.57676218]
[1771077908855,1.27233519,2074.0,2073.4,0.57676218]
[1771077909552,0.00500965,2074.0,2073.4,0.57676218]
[1771077911756,40.8,2074.4,2073.4,0.57676218]
[1771077912451,40.8,2074.4,2073.6,0.61811956]
[1771077912646,40.80368454,2074.4,2073.6,0.61811956]
[1771077915153,0.00368454,2074.4,2073.6,0.61811956]
[1771077916454,0.00368454,2074.4,2073.5,0.24122]
[1771077916656,0.00368454,2074.4,2073.0,0.62195228]
[1771077916852,6.53514433,2074.3,2073.0,0.62195228]
[1771077917154,6.53514433,2074.2,2073.0,0.62195228]
[1771077917360,15.55114433,2074.1,2073.0,0.62195228]
[1771077917552,9.016,2074.1,2073.0,0.62195228]
[1771077917959,6.53661956,2074.0,2072.8,0.6219639]
[1771077918159,9.016,2074.1,2072.8,0.6219639]
[1771077918454,6.53748972,2074.0,2072.8,0.6219639]
[1771077918652,9.016,2074.1,2072.8,0.6219639]
[1771077918852,6.5372633,2074.0,2072.7,0.61349752]
[1771077919152,6.5372633,2073.9,2072.7,0.61349752]
[1771077919356,6.5372633,2073.8,2072.7,0.61349752]
[1771077919555,9.016,2074.1,2072.7,0.61349752]
[1771077919756,6.53751732,2074.0,2072.7,0.61349752]
[1771077919957,6.53751732,2073.9,2072.7,0.61349752]
[1771077920156,6.53751732,2073.8,2072.7,0.61349752]
[1771077920357,9.016,2074.1,2072.7,0.61349752]
[1771077920652,6.53761747,2074.0,2072.7,0.61349752]
[1771077920956,6.53761747,2073.9,2072.7,0.61349752]
[1771077921153,6.53761747,2073.8,2072.7,0.61349752]
[1771077921356,9.016,2074.1,2072.7,0.61349752]
[1771077921550,6.53771036,2074.0,2072.7,0.61349752]
[1771077921756,40.8,2073.7,2072.7,0.61349752]
[1771077929861,0.24121,2073.6,2072.7,0.00529774]
[1771077930064,6.53745086,2073.5,2072.3,0.62164057]
[1771077930363,6.53745086,2073.4,2072.3,0.62164057]
[1771077930558,0.24121,2073.6,2072.3,0.62164057]
[1771077930759,6.53526277,2073.5,2072.3,0.62164057]
[1771077930962,6.53526277,2073.4,2072.3,0.62680213]
[1771077931262,4.26607578,2073.6,2072.3,0.62680213]
[1771077931463,6.53315255,2073.5,2072.3,0.00516156]
[1771077931660,6.53315255,2073.4,2072.3,0.00516156]
[1771077931862,6.53315255,2073.3,2072.3,0.00516156]
[1771077932063,20.019,2073.2,2072.3,0.00516156]
[1771077932660,0.03963223,2073.1,2072.3,0.00516156]
[1771077933267,0.03963223,2073.1,2072.3,0.58498311]
[1771077938872,0.0098827,2073.5,2072.5,0.59379911]
[1771077941468,0.01207472,2073.6,2072.5,0.59379911]
[1771077941671,40.81207472,2073.7,2072.7,0.5917381]
[1771077942071,40.8,2073.7,2072.9,0.5917381]
[1771077943775,40.82024682,2073.7,2072.9,0.5917381]
[1771077944880,0.02159235,2073.6,2072.9,0.5917381]
[1771077952183,40.81946188,2073.7,2072.9,0.5917381]
[1771077952784,0.01890506,2073.6,2072.9,0.5917381]
[1771077955284,40.81693773,2073.7,2072.9,0.5917381]
[1771077955885,0.01667358,2073.6,2072.9,0.5917381]
[1771077960486,40.8,2073.7,2073.1,0.58840784]
[1771077960688,0.01403377,2074.0,2073.1,0.58840784]
[1771077960893,0.01403377,2074.0,2073.3,0.59489687]
[1771077961190,40.8,2074.0,2073.3,0.59489687]
[1771077961489,40.8,2074.0,2073.5,0.59489687]
[1771077962085,20.02105572,2074.2,2073.5,0.59489687]
[1771077962287,20.02,2074.2,2073.5,0.59489687]
[1771077962487,40.8,2074.1,2073.5,0.59489687]
[1771077966191,0.00175474,2074.2,2073.5,0.59489687]
[1771077966696,40.80175474,2074.2,2073.5,0.59489687]
[1771077967296,40.8,2074.2,2073.7,0.59062675]
[1771077967594,0.011939,2074.4,2073.7,0.59062675]
[1771077968095,40.8,2074.3,2073.7,0.59062675]
[1771077970296,0.011939,2074.4,2073.7,0.59062675]
[1771077970797,40.811939,2074.4,2073.7,0.59062675]
[1771077971096,0.00155134,2074.3,2073.7,0.59062675]
[1771077974899,40.80368454,2074.4,2073.7,0.59062675]
[1771077975588,20.015,2074.8,2073.9,0.59362544]
[1771077975792,6.55195156,2074.7,2073.9,0.59362544]
[1771077975994,40.8,2074.6,2073.9,0.59362544]
[1771077976594,0.00115622,2074.5,2073.9,0.5997548]
[1771077978300,42.07248978,2074.6,2073.9,0.5997548]
[1771077979400,42.07153449,2074.6,2073.9,0.5997548]
[1771077982401,0.00540003,2074.6,2073.9,0.5997548]
[1771077984001,0.00540003,2074.6,2074.1,0.59564593]
[1771077985502,3e-08,2074.6,2074.3,0.5935091]
[1771077991602,3e-08,2074.6,2074.5,0.59242826]
[1771077994510,0.00229407,2074.9,2074.5,0.59242826]
[1771077995114,40.8,2075.0,2074.5,0.59242826]
[1771077995313,40.80591177,2075.0,2074.5,0.59242826]
[1771077995515,40.81160245,2075.0,2074.5,0.59242826]
[1771077995813,40.80569068,2075.0,2074.5,0.59242826]
[1771077996016,0.00574943,2074.9,2074.5,0.59242826]
[1771077997111,42.08211012,2075.0,2074.5,0.59242826]
[1771077997312,40.80569068,2075.0,2074.5,0.59242826]
[1771077998411,0.00569068,2075.0,2074.5,0.59242826]
[1771078000812,0.0210432,2075.0,2074.5,0.59242826]
[1771078001012,1.28717766,2075.0,2074.5,0.59242826]
[1771078001708,0.01520161,2074.9,2074.5,0.59242826]
[1771078003714,0.01520161,2074.9,2074.4,0.82586185]
[1771078003919,1.28066873,2074.8,2074.4,0.82586185]
[1771078004320,0.01453427,2074.8,2074.4,0.82586185]
[1771078004622,0.01453427,2074.8,2074.5,0.58475185]
[1771078005522,1.27182514,2075.0,2074.5,0.58475185]
[1771078005721,0.01424898,2074.9,2074.5,0.58475185]
[1771078007825,1.29125327,2075.0,2074.5,0.58475185]
[1771078008024,0.01942813,2074.9,2074.5,0.58475185]
[1771078009024,1.2921719,2075.0,2074.5,0.58475185]
[1771078010523,1.27182514,2075.0,2074.5,0.58475185]
[1771078011725,0.00569068,2075.0,2074.5,0.58475185]
[1771078015829,0.0271433,2075.0,2074.5,0.58475185]
[1771078016125,1.29327776,2075.0,2074.5,0.58475185]
[1771078016724,0.02253491,2074.9,2074.5,0.58475185]
[1771078017429,0.02253491,2074.9,2074.0,0.5386581]
[1771078020625,0.54411934,2074.5,2074.0,0.5386581]
[1771078021226,0.54778402,2074.3,2073.9,0.4883233]
[1771078021425,0.54778402,2074.3,2073.4,0.55437504]
[1771078021622,0.54778402,2074.3,2073.5,0.55437504]
[1771078022428,0.54778402,2074.3,2073.5,0.56056079]
[1771078023232,0.54778402,2074.7,2074.0,0.55437504]
[1771078023926,0.54778402,2074.2,2073.6,0.55437504]
[1771078024431,0.54778402,2073.9,2073.5,0.52917264]
[1771078024630,0.58798133,2073.5,2072.8,0.00486229]
[1771078025330,0.59037593,2074.8,2073.4,1.26613446]
[1771078025526,1.85651765,2074.4,2073.5,4.001]
[1771078025827,0.59038319,2074.1,2073.4,0.00512668]
[1771078026426,41.39038319,2074.1,2073.4,0.00512668]
[1771078026626,0.58515783,2074.0,2073.5,0.01048346]
[1771078026826,0.59039956,2073.9,2073.4,0.00512668]
[1771078027328,40.8,2074.1,2072.9,4.24229]
[1771078027329,0.59039956,2073.7,2072.9,4.24229]
[1771078027633,0.59039956,2073.7,2072.9,0.24129]
[1771078028428,0.59039956,2073.7,2072.9,0.24484919]
[1771078028624,0.59039956,2073.7,2073.0,0.02059782]
[1771078028834,0.58000119,2073.5,2073.0,0.02059782]
[1771078029142,0.58000119,2074.0,2073.3,0.02059782]
[1771078030530,0.57983628,2073.5,2073.0,0.02060864]
[1771078031429,40.8,2074.1,2073.0,0.02060864]
[1771078031634,0.59026168,2074.3,2073.2,1.26613446]
[1771078031928,0.59026168,2074.3,2073.1,0.24126]
[1771078032128,0.59026867,2073.8,2073.1,0.24126]
[1771078032631,0.59026867,2074.0,2073.2,0.17121249]
[1771078037936,0.60829782,2073.2,2072.9,0.00355919]
[1771078038137,0.60829782,2073.2,2072.5,0.11343112]
[1771078038534,0.60829782,2073.2,2071.9,0.1092726]
[1771078038939,0.61961819,2073.0,2071.9,0.1092726]
[1771078039236,0.62502835,2073.0,2071.9,0.11481855]
[1771078040334,0.6192063,2072.9,2071.9,0.11481855]
[1771078044436,0.61492877,2072.7,2071.9,0.11481855]
[1771078045435,1.26664915,2073.4,2071.9,0.11481855]
[1771078045436,0.60481899,2074.0,2072.0,0.0864796]
[1771078045638,0.6044534,2073.8,2072.7,0.08721079]
[1771078046037,0.6044534,2073.6,2072.7,0.08721079]
[1771078046537,0.60839172,2073.6,2072.7,0.08721079]
[1771078052342,0.61497706,2073.5,2072.7,0.08721079]
[1771078052841,0.61497706,2073.3,2072.7,0.08721079]
[1771078053146,0.61497706,2073.2,2072.7,0.08721079]
[1771078054639,0.61497706,2073.1,2072.7,0.08721079]
[1771078054843,0.61497706,2073.1,2072.6,0.1111579]
[1771078055837,0.61497706,2073.1,2072.4,0.10759984]
[1771078056638,0.61497706,2073.0,2072.0,0.09374062]
[1771078057048,0.61497706,2073.0,2072.2,0.09374062]
[1771078057246,0.61497706,2073.0,2072.4,0.09374062]
[1771078057648,0.61497706,2073.2,2072.6,0.09023884]
[1771078058546,0.61497706,2073.1,2072.6,0.09023884]
[1771078060342,0.62275894,2073.3,2072.6,0.09023884]
[1771078060542,20.021,2073.5,2072.6,0.09023884]
[1771078060543,0.62275894,2073.5,2072.6,0.09023884]
[1771078062055,0.62275894,2073.4,2072.6,0.09023884]
[1771078064951,0.62275894,2074.4,2073.3,0.05574882]
[1771078065454,0.62275894,2074.2,2073.3,0.05574882]
[1771078065857,0.62744299,2074.2,2073.3,0.05574882]
[1771078066059,0.62275894,2074.1,2073.5,0.05250252]
[1771078066255,0.62275894,2074.1,2073.5,0.05756761]
[1771078066554,1.89481825,2074.0,2073.5,0.05756761]
[1771078066858,0.62275894,2074.0,2073.5,0.05756761]
[1771078067552,1.27205931,2073.9,2073.5,0.05756761]
[1771078068156,0.62275894,2073.9,2073.5,0.05756761]
[1771078068359,1.89481825,2073.9,2073.5,0.05756761]
[1771078069154,1.27205931,2073.8,2073.5,0.05756761]
[1771078071161,0.62275894,2073.9,2073.5,0.05756761]
[1771078071562,1.89481825,2073.8,2073.5,0.05756761]
[1771078071762,0.62275894,2073.8,2073.5,0.05756761]
[1771078072063,1.27205931,2073.7,2073.5,0.05756761]
[1771078072265,0.62275894,2074.0,2073.5,0.05756761]
[1771078072567,1.89481825,2073.8,2073.5,0.05756761]
[1771078072761,0.62275894,2073.8,2073.5,0.00506509]
[1771078073066,0.68616931,2073.6,2073.5,0.00506509]
[1771078073264,0.62275894,2073.8,2073.5,0.00506509]
[1771078074467,0.62275894,2074.1,2073.5,0.09028695]
[1771078074863,0.62275894,2074.1,2073.6,0.32275672]
[1771078075064,0.62275894,2074.1,2073.7,0.08154672]
[1771078075564,0.60332945,2074.1,2073.7,0.08154672]
[1771078075770,0.62744299,2074.2,2073.7,0.08154672]
[1771078077364,0.62744299,2074.2,2073.8,0.24118]
[1771078077568,0.62744299,2074.2,2073.8,0.3231816]
[1771078078563,0.62744299,2074.2,2073.8,0.24118]
[1771078080071,0.62744299,2074.2,2072.6,0.31741663]
[1771078080371,0.62275894,2074.0,2072.6,0.31741663]
[1771078080773,0.62275894,2074.0,2072.8,0.2413]
[1771078081072,0.62275894,2074.0,2072.8,0.24669295]
[1771078081263,0.62275894,2074.0,2073.1,0.33533411]
[1771078081884,0.62275894,2074.0,2073.0,0.24128]
[1771078082174,0.62275894,2074.0,2073.0,0.57333915]
[1771078082473,0.62275894,2074.0,2073.1,0.33205915]
[1771078088574,0.62275894,2074.0,2073.2,0.24125]
[1771078088881,0.62275894,2074.0,2073.2,0.54919315]
[1771078089379,0.62275894,2074.0,2073.3,0.30794315]
[1771078090169,0.62275894,2074.0,2072.8,0.00539295]
[1771078090375,0.00468405,2074.2,2072.8,0.00539295]
[1771078090376,0.62325117,2073.4,2072.8,0.55140526]
[1771078090678,0.62325117,2073.4,2072.8,0.00539295]
[1771078090878,0.62325117,2073.3,2072.5,0.78953429]
[1771078091278,0.62325117,2073.3,2072.5,0.24133]
[1771078092080,0.62325117,2073.3,2072.5,0.24624325]
[1771078092385,0.62325117,2073.3,2072.5,0.80543828]
[1771078092774,0.62325117,2073.3,2072.5,0.24624325]
[1771078093484,0.62325117,2073.3,2072.6,0.54216171]
[1771078094882,0.62325117,2073.3,2072.5,0.00491325]
[1771078095479,0.62325117,2073.3,2071.9,0.2414]
[1771078095480,0.62325117,2073.3,2072.0,0.53961687]
[1771078095681,0.62325117,2073.1,2072.0,0.53961687]
[1771078096486,0.62325117,2073.1,2072.0,0.5454286]
[1771078101091,0.62325117,2073.1,2071.4,0.54145172]
[1771078101092,0.62325117,2072.9,2071.4,0.54145172]
[1771078101588,0.62325117,2072.7,2071.4,0.54145172]
[1771078102187,0.62832789,2072.7,2071.4,0.54759846]
[1771078103590,0.62325117,2072.5,2071.4,0.54759846]
[1771078106295,0.62325117,2072.5,2071.6,0.52229036]
[1771078108796,0.62832789,2072.7,2071.8,0.51994742]
[1771078109593,0.62832789,2072.7,2072.0,0.52023319]
[1771078112995,0.00507672,2072.7,2072.2,0.52918724]
[1771078113195,0.5535413,2072.9,2072.2,0.52918724]
[1771078113593,0.5535413,2072.9,2072.4,0.52893584]
[1771078114096,0.5591385,2072.9,2072.3,0.24136]
[1771078114301,0.5591385,2072.9,2072.3,0.77033864]
[1771078114596,0.5591385,2072.9,2072.4,0.52897864]
[1771078114993,0.5591385,2072.9,2071.5,0.53176403]
[1771078116101,0.5591385,2072.9,2071.9,0.53155958]
[1771078118298,0.5591385,2072.9,2071.8,0.79539483]
[1771078120199,0.5591385,2072.9,2071.9,0.55021413]
[1771078122301,0.59125796,2072.7,2071.5,0.54938988]
[1771078122499,0.59125796,2072.5,2071.5,0.54938988]
[1771078124903,0.59125796,2072.3,2071.5,0.54938988]
[1771078130907,0.59125796,2072.3,2071.7,0.54738752]
[1771078133008,4.03158312,2072.8,2071.7,0.54738752]
[1771078133210,0.59125796,2072.7,2071.7,0.54738752]
[1771078133409,0.59125796,2072.5,2071.7,0.54738752]
[1771078133603,0.59125796,2072.5,2071.0,1.95609298]
[1771078133604,0.59125796,2072.6,2071.9,0.55064479]
[1771078140418,0.0055972,2072.9,2071.9,0.55064479]
[1771078140624,0.59125796,2072.8,2072.2,0.24137]
[1771078140819,0.59125796,2072.8,2072.2,0.79250822]
[1771078141923,0.59125796,2072.8,2072.2,0.24137]
[1771078145027,0.59125796,2072.8,2072.3,0.53230471]
[1771078145627,0.59125796,2072.8,2072.2,0.24137]
[1771078146823,1.85962574,2072.8,2071.9,0.53188043]
[1771078147032,0.55370139,2072.7,2071.9,0.53188043]
[1771078147330,0.55370139,2072.7,2072.1,0.53188043]
[1771078147828,0.55929859,2072.9,2072.1,0.53188043]
[1771078149826,0.55370139,2073.1,2072.3,0.5303244]
[1771078150527,0.55370139,2073.2,2072.5,0.5303244]
[1771078150928,0.55711694,2073.2,2072.5,0.5303244]
[1771078152530,0.55711694,2073.2,2072.7,0.53078086]
[1771078153324,0.00341555,2073.2,2072.7,0.53078086]
[1771078153922,0.00341555,2073.2,2072.8,0.2413]
[1771078154127,0.00341555,2073.2,2072.9,0.52728815]
[1771078154327,0.00341555,2073.2,2072.9,0.53284663]
[1771078159334,41.35370139,2073.6,2072.9,0.53284663]
[1771078159541,0.55370139,2073.6,2072.9,0.53284663]
[1771078160037,0.55370139,2073.6,2073.1,0.52254036]
[1771078160440,0.5574798,2073.6,2073.1,0.52254036]
[1771078162435,0.00377841,2073.6,2073.1,0.52254036]
[1771078163840,0.5574798,2073.6,2073.1,0.52254036]
[1771078164935,0.55370139,2073.8,2073.3,0.52914493]
[1771078166039,0.55842595,2073.8,2073.3,0.52914493]
[1771078166537,1e-08,2074.0,2073.5,0.5290318]
[1771078166742,0.55370139,2074.5,2073.5,0.5290318]
[1771078166942,0.55370139,2074.3,2073.5,0.5290318]
[1771078167735,0.55893626,2074.3,2073.5,0.5290318]
[1771078168636,0.55893626,2074.3,2073.6,0.24121]
[1771078168841,0.55893626,2074.3,2073.7,0.5509126]
[1771078169041,0.55893626,2074.3,2073.7,0.4709126]
[1771078170638,0.55893626,2074.3,2073.6,0.24121]
[1771078171443,0.55893626,2074.3,2073.6,0.82272364]
[1771078173445,0.55893626,2074.3,2073.7,0.58151364]
[1771078176947,0.00523487,2074.3,2073.7,0.58151364]
[1771078177546,0.56837548,2074.5,2073.9,0.58151364]
[1771078177948,41.36837548,2074.5,2074.1,0.58151364]
[1771078178146,0.56837548,2074.7,2074.1,0.58151364]
[1771078178538,41.37212555,2074.7,2074.1,0.58151364]
[1771078178742,0.56837548,2074.6,2074.1,0.58151364]
[1771078188654,0.585718,2074.5,2073.0,0.57257372]
[1771078188949,0.585718,2074.3,2073.1,0.57257372]
[1771078189145,0.585718,2074.2,2073.1,0.57257372]
[1771078190057,0.585718,2074.2,2073.2,0.24125]
[1771078190355,0.585718,2074.2,2073.3,0.57257372]
[1771078197559,0.585718,2073.8,2072.9,0.5781322]
[1771078198758,0.585718,2073.8,2073.1,0.57257372]
[1771078200162,0.585718,2074.2,2073.3,0.57257372]
[1771078201659,0.55315643,2074.4,2073.5,0.56298161]
[1771078202058,0.55315643,2074.4,2073.7,0.56298161]
[1771078202258,0.55315643,2074.4,2073.9,0.56298161]
[1771078202452,0.55315643,2074.6,2073.9,0.56298161]
[1771078204466,0.55315643,2074.6,2073.8,0.24118]
[1771078204666,0.55315643,2074.6,2073.7,0.56298161]
[1771078205061,1.26612532,2074.2,2073.3,0.56298161]
[1771078205260,0.55315643,2074.1,2073.3,0.56298161]
[1771078209266,0.55315643,2074.1,2073.4,0.24123]
[1771078209566,0.55315643,2074.1,2073.5,0.56298161]
[1771078209867,0.55315643,2074.2,2073.5,0.56298161]
[1771078210768,0.55315643,2074.6,2073.5,0.56298161]
[1771078211560,6.50582463,2074.5,2073.5,0.56298161]
[1771078211767,0.55315643,2074.4,2073.5,0.56298161]
[1771078218273,0.55315643,2074.2,2073.4,0.80421161]
[1771078218774,0.55315643,2074.2,2073.5,0.56298161]
[1771078225481,0.55315643,2074.2,2073.7,0.56298161]
[1771078226480,0.55315643,2074.6,2073.7,0.56298161]
[1771078226671,0.55315643,2074.4,2073.7,0.56298161]
[1771078227981,0.55315643,2074.4,2073.6,0.24121]
[1771078228279,0.55315643,2074.4,2073.6,0.80419161]
[1771078228472,0.55315643,2074.4,2073.6,0.24121]
[1771078228670,0.55315643,2074.2,2073.6,0.24121]
[1771078228877,6.51939423,2074.3,2073.5,0.56298161]
[1771078228878,0.55315643,2074.0,2073.5,0.56298161]
[1771078229280,0.55315643,2074.0,2073.2,0.56298161]
[1771078231880,0.56375351,2074.4,2073.5,0.55982611]
[1771078232079,0.56375351,2074.2,2073.5,0.55982611]
[1771078236982,1.26669962,2074.1,2073.4,0.55982611]
[1771078237182,0.56375351,2074.0,2073.4,0.55982611]
[1771078239383,0.56375351,2073.8,2073.2,0.55982611]
[1771078257798,0.57172648,2073.9,2073.3,0.5616015]
[1771078260494,0.57172648,2074.2,2073.3,0.5616015]
[1771078260797,0.57172648,2074.0,2073.3,0.5616015]
[1771078262301,0.53183478,2073.8,2073.2,0.24125]
[1771078262802,0.53183478,2073.6,2072.9,0.54395176]
[1771078263691,0.53183478,2074.1,2073.1,0.53839328]
[1771078263896,0.53183478,2073.9,2073.1,0.53839328]
[1771078276506,0.53183478,2073.9,2073.3,0.53839328]
[1771078276702,4.04983595,2074.2,2073.3,0.53839328]
[1771078276703,0.53183478,2074.1,2073.3,0.53839328]
[1771078276903,7.05906591,2074.0,2073.3,0.53839328]
[1771078277102,0.53183478,2074.0,2073.3,0.53839328]
[1771078299624,6.51870368,2073.9,2073.1,0.80794843]
[1771078299828,0.55197573,2073.8,2073.1,0.80794843]
[1771078300231,0.55197573,2073.8,2073.2,0.56668843]
[1771078302124,0.55197573,2073.8,2073.1,0.24126]
[1771078302730,0.55197573,2073.8,2072.9,0.56384645]
[1771078302933,0.57567833,2073.6,2072.9,0.00555848]
[1771078306632,0.57567833,2073.6,2072.6,0.79960797]
[1771078307533,0.57567833,2073.6,2072.7,0.55828797]
[1771078308333,0.57567833,2073.4,2072.7,0.55828797]
[1771078309536,0.57567833,2073.4,2072.6,0.24559398]
[1771078309841,0.57567833,2073.4,2072.6,0.80388195]
[1771078311835,0.57567833,2073.4,2072.6,0.24559398]
[1771078313637,0.57567833,2073.4,2072.6,0.00427398]
[1771078319643,0.57567833,2073.4,2072.6,0.56256195]
[1771078321849,0.57567833,2073.4,2072.6,0.00427398]
[1771078322551,0.57567833,2073.4,2072.6,0.56374727]
[1771078325550,0.57567833,2073.4,2072.6,0.00427398]
[1771078329351,0.54391056,2073.2,2072.6,0.00427398]
[1771078329553,0.54886013,2073.2,2072.6,0.00427398]
[1771078330350,0.54886013,2073.2,2072.6,0.56374727]
[1771078331152,0.54886013,2073.2,2072.6,0.00427398]
[1771078334755,0.54886013,2073.2,2072.6,0.56374727]
[1771078341262,6.51476883,2073.1,2072.6,0.56374727]
[1771078341464,0.54391056,2073.0,2072.6,0.56374727]
[1771078342750,0.00494957,2073.2,2072.6,0.56374727]
[1771078343163,0.54886013,2073.2,2072.6,0.56374727]
[1771078343462,0.54391056,2073.1,2072.6,0.56374727]
[1771078345057,0.00494957,2073.2,2072.6,0.56374727]
[1771078345266,0.54886013,2073.2,2072.6,0.56374727]
[1771078348565,0.00494957,2073.2,2072.6,0.56374727]
[1771078361776,0.00494957,2073.2,2072.6,0.80506727]
[1771078362172,0.00494957,2073.2,2072.7,0.54438114]
[1771078375291,0.00494957,2073.2,2072.9,0.54438114]
[1771078380704,0.59039934,2073.2,2072.9,0.54438114]
[1771078380897,0.5864341,2073.0,2072.3,0.24135]
[1771078382005,0.5864341,2073.0,2072.3,0.24619161]
[1771078383006,0.5864341,2073.0,2072.4,0.00614797]
[1771078385902,0.58838024,2073.2,2072.4,0.00614797]
[1771078386209,0.00494957,2073.2,2072.6,0.00622868]
[1771078388511,0.00494957,2073.2,2072.8,0.00602165]
[1771078392115,0.00494957,2073.2,2072.9,0.24129]
[1771078392304,0.58356001,2073.7,2073.0,0.01086456]
[1771078392909,0.58356001,2073.5,2073.0,0.01086456]
[1771078393409,0.58836602,2073.5,2073.0,0.01086456]
[1771078394412,0.58164526,2073.4,2072.9,0.24129]
[1771078394813,0.58164526,2073.4,2072.9,0.25101748]
[1771078396016,0.58164526,2073.4,2073.0,0.00937152]
[1771078397013,0.58164526,2073.4,2072.9,0.25237141]
[1771078399123,0.58164526,2073.4,2073.0,0.00294144]
[1771078410725,0.58457406,2073.5,2073.0,0.00294144]
[1771078410922,0.58457406,2073.5,2073.2,0.01311672]
[1771078410923,0.00480601,2073.5,2073.2,0.01311672]
[1771078411320,0.57988582,2073.7,2073.2,0.01311672]
[1771078412122,0.57988582,2073.7,2073.4,0.01303692]
[1771078412325,0.58498304,2073.7,2073.4,0.01303692]
[1771078414326,0.58498304,2073.7,2073.3,0.25625834]
[1771078414527,0.58498304,2073.7,2073.3,0.24124]
[1771078418029,0.58498304,2073.7,2073.4,0.01604731]
[1771078418722,0.57835323,2073.8,2073.4,0.01604731]
[1771078419228,0.13996535,2073.8,2073.4,0.01604731]
[1771078419434,0.13996535,2073.8,2073.5,0.68498891]
[1771078419727,0.00359301,2073.8,2073.6,0.44376891]
[1771078420123,0.5702261,2073.8,2073.5,0.24122]
[1771078420330,0.5702261,2073.8,2073.0,0.44376378]
[1771078421234,0.5702261,2073.8,2073.5,0.24122]
[1771078427730,0.5702261,2073.8,2073.5,0.82533877]
[1771078430835,0.5739625,2073.8,2073.5,0.24122]
[1771078431032,0.5739625,2073.8,2073.2,0.58411877]
[1771078431630,0.5739625,2073.8,2073.0,0.82539877]
[1771078433331,0.57036949,2073.6,2073.0,0.82539877]
[1771078433837,0.57036949,2073.6,2073.3,0.58411877]
[1771078434143,41.37036949,2073.7,2073.3,0.58411877]
[1771078434439,0.57036949,2073.7,2073.3,0.58411877]
[1771078437743,0.57036949,2073.7,2073.4,0.82534877]
[1771078437944,0.5739625,2073.8,2073.5,0.58411877]
[1771078438344,0.5739625,2073.8,2073.4,0.82534877]
[1771078439945,0.5739625,2073.8,2073.5,0.58411877]
[1771078440146,0.5739625,2073.8,2073.4,0.82534877]
[1771078440549,0.5739625,2073.8,2073.5,0.58411877]
[1771078440743,0.00359301,2073.8,2073.5,0.58411877]
[1771078440937,0.00359301,2073.8,2073.6,0.82532877]
[1771078443454,0.54218091,2073.8,2073.3,0.52967267]
[1771078444353,0.54218091,2073.8,2073.2,0.52967267]
[1771078445055,0.54218091,2073.8,2073.0,0.52967267]
[1771078445256,0.54218091,2073.8,2073.1,0.77093267]
[1771078446554,0.54218091,2073.8,2073.2,0.52967267]
[1771078450260,0.54218091,2073.8,2073.3,0.77091267]
[1771078452054,0.54218091,2073.8,2073.4,0.52967267]
[1771078452750,0.00359301,2073.8,2073.4,0.52967267]
[1771078452954,0.54218091,2073.8,2073.4,0.52967267]
[1771078453156,0.00359301,2073.8,2073.4,0.52967267]
[1771078453553,0.54218091,2073.8,2073.4,0.52967267]
[1771078453859,0.54218091,2073.8,2073.5,0.77089267]
[1771078454258,0.54218091,2073.8,2073.5,0.24122]
[1771078460659,0.54218091,2073.8,2073.5,0.77089267]
[1771078460959,0.5385879,2074.1,2073.6,0.52967267]